fUST/lending_fUST_20250830
["ID","MTS","AMOUNT","RATE_DAILY","PERIOD"]
[382101560,1756503032450,-425.57542551,0.00028,10]
[382101562,1756503032460,-503.72103436,0.00028673,5]
[382101563,1756503032469,-500.0,0.00028673,5]
[382101564,1756503032479,-300.0,0.00028677,2]
[382101565,1756503032488,-380.21,0.00028678,10]
[382101566,1756503032498,-316.84,0.00028678,10]
[382101568,1756503032507,-500.0,0.00028678,2]
[382101570,1756503032517,-500.0,0.00028678,2]
[382101572,1756503032527,-464.09053622,0.00028678,2]
[382101574,1756503032537,-500.0,0.00028678,2]
[382101577,1756503032546,-500.0,0.00028678,2]
[382101579,1756503032555,-500.0,0.00028678,2]
[382101582,1756503032564,-500.0,0.00028678,2]
[382101584,1756503032574,-500.0,0.00028678,2]
[382101586,1756503032583,-326.94099064,0.00028678,2]
[382101588,1756503032593,-22802.21202442,0.00028679,2]
[382101590,1756503032605,-47664.73645698,0.00028679,2]
[382101592,1756503032615,-221.01170541,0.00028688,2]
[382101594,1756503032624,-175.14263343,0.00028689,2]
[382101595,1756503032638,-1430.249985,0.00028689,2]
[382101596,1756503032655,-440.0,0.00028689,2]
[382101597,1756503032666,-501.62211796,0.00028689,2]
[382101611,1756503038529,-3299.7,0.00028689,2]
[382101614,1756503038540,-16503.5364,0.00028689,2]
[382102210,1756503044111,-5.75987683,0.00028679,10]
[382102231,1756503044297,711.4275838,0.000199,2]
[382102241,1756503044387,711.42758357,0.00022879,2]
[382102273,1756503044685,711.42758357,0.00021389,2]
[382105820,1756503217338,2000.33991039,0.000199,2]
[382105821,1756503217536,2000.33991026,0.00021389,2]
[382105822,1756503218207,2000.33991026,0.00022879,2]
[382105840,1756503390311,1800.2244135,0.000199,2]
[382105841,1756503390398,1800.2244134,0.00022879,2]
[382105842,1756503390636,1800.2244134,0.00021389,2]
[382105876,1756503568876,1620.11169065,0.000199,2]
[382105877,1756503569610,1620.11169054,0.00022879,2]
[382105886,1756503742215,1511.75423264,0.000199,2]
[382105889,1756503742789,1511.75423246,0.00022879,2]
[382105890,1756503742834,1511.75423246,0.00021389,2]
[382105913,1756503918109,1360.48825606,0.000199,2]
[382105914,1756503918142,1360.48825594,0.00022879,2]
[382105915,1756503919503,1360.48825594,0.00021389,2]
[382105944,1756504087429,1224.34979117,0.000199,2]
[382105945,1756504087739,1224.34979108,0.00022879,2]
[382105946,1756504088337,1224.34979108,0.00021389,2]
[382105951,1756504228745,165.33868,0.00013699,2]
[382105992,1756504232635,-748.99917642,0.00024368,2]
[382105994,1756504232645,-1224.34979108,0.00024368,2]
[382105996,1756504232655,-1224.34979108,0.00025857,4]
[382105998,1756504232664,-1200.0,0.00026574,2]
[382106000,1756504232674,-300.0,0.00026847,2]
[382106003,1756504232684,-300.0,0.00026847,2]
[382106005,1756504232693,-300.0,0.00026847,2]
[382106007,1756504232702,-300.0,0.00026847,2]
[382106009,1756504232711,-300.0,0.00026847,2]
[382106010,1756504232721,-5169.47995916,0.00027,2]
[382106011,1756504232730,-317.066,0.00027346,16]
[382106014,1756504232739,-42587.05277058,0.00027346,2]
[382106016,1756504232751,-7412.94722942,0.00027346,2]
[382106017,1756504232760,-176.256,0.00027346,16]
[382106019,1756504232770,-570.16002128,0.00027397,5]
[382106021,1756504232779,-500.0,0.00028557,2]
[382106022,1756504232788,-500.0,0.00028557,2]
[382106025,1756504232798,-500.0,0.00028557,2]
[382106026,1756504232807,-500.0,0.00028557,2]
[382106028,1756504232816,-547.41476774,0.00028557,2]
[382106030,1756504232825,-42062.28198155,0.00028559,2]
[382106712,1756504246803,-2000.0,0.00028549,10]
[382106731,1756504246984,-375.17554762,0.00028549,10]
[382107462,1756504255069,1020.22710663,0.000199,2]
[382107486,1756504256085,1020.22710648,0.00021389,2]
[382107504,1756504422970,1298.71710582,0.000199,2]
[382107505,1756504423083,1298.7171057,0.00022879,2]
[382107506,1756504423525,1298.7171057,0.00021389,2]
[382107507,1756504608512,1168.62431794,0.000199,2]
[382107508,1756504609223,1168.62431782,0.00021389,2]
[382107509,1756504645439,5000.0,0.0002405,2]
[382107510,1756504667915,2202.40914467,0.0002405,2]
[382107511,1756504682346,372.44,0.000221,2]
[382107512,1756504745546,248.29,0.000221,2]
[382107514,1756504777079,1090.71196132,0.000199,2]
[382107515,1756504777643,1090.71196121,0.00022879,2]
[382107516,1756504778019,1090.71196121,0.00021389,2]
[382107517,1756504808588,165.53,0.000221,2]
[382107519,1756504894502,180.797121,0.00013516,2]
[382107521,1756504947136,981.64349225,0.000199,2]
[382107522,1756504947523,981.64349209,0.00022879,2]
[382107523,1756504947771,981.64349209,0.00021389,2]
[382107526,1756505116478,905.49862911,0.000199,2]
[382107527,1756505116515,905.49862894,0.00021389,2]
[382107528,1756505116861,905.49862894,0.00022879,2]
[382107531,1756505167295,160.093658,0.00013699,2]
[382107532,1756505167520,160.093658,0.00020548,2]
[382107533,1756505222220,154.0452109,0.00023574,2]
[382107534,1756505231574,151.77359319,0.00023574,2]
[382107535,1756505282150,154.0452109,0.00023574,2]
[382107536,1756505288675,814.94876622,0.000199,2]
[382107537,1756505289239,814.94876604,0.00022879,2]
[382107538,1756505289432,814.94876604,0.00021389,2]
[382107539,1756505291112,151.77359319,0.00023574,2]
[382107540,1756505342340,154.0452109,0.00023574,2]
[382107541,1756505351073,151.77359319,0.00023574,2]
[382107542,1756505402319,154.0452109,0.00023574,2]
[382107543,1756505410853,151.77359319,0.00023574,2]
[382107547,1756505431744,-154.04521089,0.00024303,2]
[382107548,1756505431754,-154.0540891,0.00024368,2]
[382108498,1756505445954,-101.84978284,0.00024368,2]
[382108500,1756505445965,-814.94876604,0.00024368,2]
[382108502,1756505445974,-2000.0,0.000244,2]
[382108503,1756505445984,-154.0452109,0.00025055,2]
[382108505,1756505445994,-658.95228638,0.00025496,2]
[382109463,1756505455802,725.75838504,0.000199,2]
[382109491,1756505456221,725.75838496,0.00021389,2]
[382109508,1756505456470,725.75838496,0.00022879,2]
[382111506,1756505490296,197.99,0.00022879,2]
[382111528,1756505581050,570.86148799,0.00023637,2]
[382111529,1756505582144,154.04521089,0.00023574,2]
[382111538,1756505623016,653.18254658,0.000199,2]
[382111539,1756505623147,653.18254646,0.00021389,2]
[382111540,1756505623312,653.18254646,0.00022879,2]
[382111543,1756505642402,154.0452109,0.00023576,2]
[382111547,1756505653219,157.36731523,0.0002405,2]
[382111557,1756505702279,154.04521089,0.00023576,2]
[382111569,1756505752258,155.0,0.00022,2]
[382111570,1756505752573,155.0,0.00022192,7]
[382111571,1756505752908,155.0,0.00023014,7]
[382111576,1756505762302,154.0452109,0.00023576,2]
[382111577,1756505808967,587.86429193,0.000199,2]
[382111578,1756505809578,587.86429181,0.00021389,2]
[382111579,1756505809930,587.86429181,0.00022879,2]
[382111580,1756505822298,154.04521089,0.00023576,2]
[382111583,1756505852363,155.0,0.00022,2]
[382111584,1756505852713,155.0,0.00023014,7]
[382111587,1756505882231,154.0452109,0.00023576,2]
[382111594,1756505942347,154.04521089,0.00023576,2]
[382111596,1756505952754,155.0,0.00022,2]
[382111598,1756505978912,529.07973816,0.000199,2]
[382111599,1756505979955,529.07973798,0.00022879,2]
[382111600,1756506002644,154.0452109,0.00023576,2]
[382111603,1756506062475,154.04521089,0.00023576,2]
[382111607,1756506122065,154.0452109,0.00023576,2]
[382111611,1756506148036,583.71106059,0.000199,2]
[382111612,1756506148470,583.71106038,0.00022879,2]
[382111617,1756506167931,161.05274,0.00013699,2]
[382111618,1756506168130,161.05274,0.00020187,2]
[382111619,1756506182367,154.04521089,0.00023576,2]
[382111622,1756506242601,154.0452109,0.00023576,2]
[382111623,1756506302264,154.04521089,0.00023577,2]
[382111626,1756506317036,544.79698992,0.000199,2]
[382111627,1756506317298,544.79698968,0.00022879,2]
[382111628,1756506317646,544.79698968,0.00021389,2]
[382111644,1756506362216,154.0452109,0.00023577,2]
[382111654,1756506423084,154.04521089,0.00023577,2]
[382111663,1756506474205,7359.29539098,0.00018,2]
[382111666,1756506486928,490.31729077,0.000199,2]
[382111667,1756506487623,490.31729071,0.00021389,2]
[382111668,1756506487996,490.31729071,0.00022879,2]
[382111671,1756506515525,13640.1570876,0.0002,20]
[382111672,1756506517317,1705.17140275,0.00024,2]
[382111712,1756506632032,-490.31729071,0.00024368,2]
[382111713,1756506632042,-285.43074399,0.00024449,2]
[382111714,1756506632053,-930.0,0.00024577,2]
[382111716,1756506632063,-1200.0,0.00024578,2]
[382111717,1756506632072,-300.0,0.00024578,2]
[382111718,1756506632082,-8529.1346372,0.00024579,2]
[382111719,1756506632091,-505.62482702,0.0002465,2]
[382111720,1756506632100,-170.070442,0.00024704,2]
[382111721,1756506632109,-756.31436525,0.000249,2]
[382111722,1756506632118,-500.0,0.00024973,2]
[382111723,1756506632127,-500.0,0.00024973,2]
[382111724,1756506632136,-391.77999615,0.0002499,2]
[382111725,1756506632146,-258.86076976,0.0002499,2]
[382111726,1756506632156,-1474.39353468,0.0002499,10]
[382111778,1756506638422,-500.0,0.00024989,2]
[382111779,1756506638432,-500.0,0.00024989,2]
[382111780,1756506638442,-474.95460441,0.00024989,2]
[382111781,1756506638452,-1867.81646532,0.0002499,10]
[382111782,1756506638462,-4255.75,0.0002499,10]
[382111783,1756506638471,-3546.46,0.0002499,10]
[382111784,1756506638481,-37769.54210377,0.0002499,2]
[382111785,1756506638491,-154.70819379,0.00024999,2]
[382111786,1756506638501,-15257.45954735,0.00025,2]
[382112127,1756506643158,-1962.24768531,0.00025,2]
[382113299,1756506654962,424.84883525,0.000199,2]
[382113323,1756506655215,424.84883504,0.00021389,2]
[382113344,1756506655578,424.84883504,0.00022879,2]
[382116762,1756506844023,382.36395171,0.000199,2]
[382116763,1756506845015,382.36395153,0.00021389,2]
[382116765,1756507012436,356.84729917,0.000199,2]
[382116766,1756507012471,356.84729906,0.00022879,2]
[382116767,1756507012720,356.84729906,0.00021389,2]
[382116768,1756507050019,312.8345011,0.00023991,2]
[382116769,1756507187905,161.05274,0.00013699,2]
[382116770,1756507188143,161.05274,0.00020951,2]
[382116772,1756507198178,321.04901972,0.000199,2]
[382116773,1756507198519,321.04901946,0.00021389,2]
[382116774,1756507202235,10000.0,0.000182,30]
[382116779,1756507282194,3125.0,0.0002405,2]
[382116780,1756507303427,309.1225758,0.00023955,2]
[382116781,1756507327206,426.91593327,0.00023835,12]
[382116783,1756507367503,299.63832164,0.000199,2]
[382116784,1756507368520,299.63832137,0.00021389,2]
[382116789,1756507536116,557.61758419,0.000199,2]
[382116790,1756507537168,557.61758404,0.00021389,2]
[382116792,1756507552790,4687.5,0.0002405,2]
[382116800,1756507727302,520.44307865,0.000199,2]
[382116801,1756507727469,520.44307843,0.00022879,2]
[382116802,1756507728107,520.44307843,0.00021389,2]
[382116806,1756507803200,480.0,0.00021917,2]
[382116832,1756507832070,-228.3445952,0.0002424,2]
[382116834,1756507832079,-520.44307843,0.00024368,2]
[382116835,1756507832088,-990.0,0.00024793,2]
[382116837,1756507832097,-336.0,0.00024819,2]
[382116839,1756507832107,-990.0,0.00024832,2]
[382116841,1756507832116,-661.77506962,0.0002489,2]
[382116843,1756507832126,-933.67858272,0.000249,2]
[382116845,1756507832135,-2498.0,0.00024931,2]
[382116846,1756507832144,-400.0,0.00024972,2]
[382116848,1756507832153,-300.0,0.00024972,2]
[382116850,1756507832162,-209.11150238,0.00024973,2]
[382116852,1756507832171,-213.54671746,0.00024973,2]
[382116854,1756507832179,-504.29528285,0.00024973,2]
[382116855,1756507832187,-500.0,0.00024973,2]
[382116857,1756507832196,-500.0,0.00024973,2]
[382116859,1756507832205,-2955.38,0.0002498,10]
[382116861,1756507832213,-163.88384494,0.00024989,2]
[382116862,1756507832222,-49999.81782776,0.0002499,2]
[382116864,1756507832231,-40135.8085412,0.0002499,2]
[382116866,1756507832241,-2655.5436636,0.0002499,2]
[382116868,1756507832250,-151.0,0.0002499,7]
[382116870,1756507832258,-300.39,0.0002499,3]
[382116871,1756507832267,-150.2,0.0002499,3]
[382116873,1756507832276,-450.61,0.0002499,3]
[382116875,1756507832284,-195.88999807,0.00025,2]
[382116877,1756507832293,-4276.33744667,0.00025,2]
[382116879,1756507832303,-87952.7171971,0.00025,14]
[382117084,1756507838090,-2462.82,0.0002498,10]
[382117086,1756507838101,-566.37406529,0.00025,14]
[382119368,1756507861276,10000.0,0.0002405,2]
[382122339,1756507893599,457.82953425,0.000199,2]
[382122348,1756507894461,457.82953414,0.00022879,2]
[382122356,1756508059471,427.30756541,0.000199,2]
[382122357,1756508060568,427.30756519,0.00022879,2]
[382122358,1756508213030,161.05274,0.00013699,2]
[382122359,1756508213285,161.05274,0.00021918,2]
[382122364,1756508252851,415.46989425,0.000199,2]
[382122365,1756508420767,401.60621374,0.000199,2]
[382122366,1756508421231,401.60621369,0.00022879,2]
[382122367,1756508421320,401.60621369,0.00021389,2]
[382122368,1756508587479,361.4166043,0.000199,2]
[382122369,1756508587929,361.41660423,0.00021389,2]
[382122370,1756508588524,361.41660423,0.00022879,2]
[382122371,1756508630218,5000.0,0.00021,5]
[382122372,1756508754573,407.71299949,0.000199,2]
[382122373,1756508755812,407.71299937,0.00022879,2]
[382122374,1756508755847,407.71299937,0.00021389,2]
[382122376,1756508892596,2187.5,0.0002405,2]
[382122377,1756508897683,5000.13423084,0.00022,5]
[382122378,1756508943439,366.94169943,0.00021389,2]
[382122379,1756508943548,366.94169943,0.00022879,2]
[382122380,1756508947442,366.94169952,0.000199,2]
[382122381,1756509005264,391.0,0.00024045,2]
[382122408,1756509032344,-391.0,0.00024612,2]
[382122410,1756509032354,-391.0,0.00024784,2]
[382122412,1756509032363,-596.0,0.00024788,2]
[382122415,1756509032373,-746.94286616,0.000249,2]
[382122417,1756509032384,-596.0,0.00024905,2]
[382122419,1756509032394,-500.0,0.00024973,2]
[382122421,1756509032403,-300.0,0.00024979,2]
[382122423,1756509032412,-3010.18564059,0.0002498,2]
[382122425,1756509032422,-199.16577477,0.0002498,2]
[382122427,1756509032431,-500.0,0.00024989,2]
[382122429,1756509032442,-500.0,0.00024989,2]
[382122431,1756509032453,-500.0,0.00024989,2]
[382122433,1756509032463,-299.14918936,0.00024989,2]
[382122435,1756509032474,-9561.76636858,0.0002499,2]
[382122438,1756509032498,-4624.983028,0.0002499,2]
[382123035,1756509038787,-77510.81520617,0.0002499,2]
[382123037,1756509038796,-18061.1138435,0.0002499,2]
[382123039,1756509038807,-1194.99464862,0.0002499,2]
[382123041,1756509038817,-210.27,0.0002499,3]
[382123043,1756509038827,-630.83,0.0002499,3]
[382123045,1756509038836,-200.0,0.00024999,14]
[382123047,1756509038846,-300.0,0.00024999,17]
[382123049,1756509038856,-195.88999807,0.00025,2]
[382123051,1756509038866,-45029.53109826,0.00025,14]
[382123053,1756509038875,-8149.92,0.00025,7]
[382123055,1756509038885,-53151.69387038,0.00025,2]
[382123527,1756509043497,-300.0,0.00025,2]
[382123738,1756509046692,-14179.00411648,0.00025,2]
[382123739,1756509046704,-28106.4303,0.00025,2]
[382126685,1756509109683,343.07384344,0.000199,2]
[382126686,1756509110246,343.07384344,0.00021389,2]
[382126687,1756509110361,343.07384344,0.00022879,2]
[382126688,1756509134294,161.05274,0.00013699,2]
[382126689,1756509134530,161.05274,0.00023182,2]
[382126692,1756509277592,309.5607899,0.000199,2]
[382126693,1756509277843,309.56078986,0.00022879,2]
[382126694,1756509278268,309.56078986,0.00021389,2]
[382126695,1756509420009,500.0,0.00024,2]
[382126697,1756509458569,278.52420341,0.000199,2]
[382126698,1756509459075,278.5242032,0.00021389,2]
[382126699,1756509459516,278.5242032,0.00022879,2]
[382126703,1756509643077,250.59188117,0.000199,2]
[382126704,1756509644096,250.59188102,0.00021389,2]
[382126709,1756509824127,233.89836337,0.000199,2]
[382126710,1756509824485,233.89836331,0.00021389,2]
[382126711,1756509825230,233.89836331,0.00022879,2]
[382126723,1756509943075,186.8030239,0.0002382,2]
[382126730,1756509994461,209.54277024,0.00021389,2]
[382126758,1756510162577,339.61632295,0.000199,2]
[382126759,1756510162834,339.61632295,0.00021389,2]
[382126760,1756510163040,339.61632295,0.00022879,2]
[382126789,1756510232575,-355.0,0.00024261,2]
[382126790,1756510232585,-403.95402107,0.000243,2]
[382126791,1756510232595,-339.61632295,0.00024368,2]
[382126792,1756510232604,-352.0,0.00024439,2]
[382126794,1756510232614,-352.0,0.00024485,2]
[382126795,1756510232623,-352.0,0.00024717,7]
[382126796,1756510232633,-645.11179954,0.000249,2]
[382126797,1756510232642,-500.0,0.00024973,2]
[382126798,1756510232652,-408.9402474,0.00024973,2]
[382126799,1756510232662,-500.0,0.00024973,2]
[382126800,1756510232671,-300.0,0.00024984,2]
[382126802,1756510232681,-300.0,0.00024984,2]
[382126803,1756510232691,-300.0,0.00024984,2]
[382126804,1756510232701,-1200.0,0.00024985,2]
[382126805,1756510232712,-151.0,0.00024985,2]
[382126806,1756510232721,-151.0,0.00024985,2]
[382126807,1756510232730,-151.0,0.00024985,2]
[382126808,1756510232739,-151.0,0.00024985,2]
[382126809,1756510232750,-177.50560328,0.00024985,2]
[382126810,1756510232759,-187.78006525,0.00024985,2]
[382126811,1756510232769,-500.0,0.00024985,2]
[382126812,1756510232778,-500.0,0.00024985,2]
[382126813,1756510232788,-500.0,0.00024985,2]
[382126814,1756510232797,-500.0,0.00024985,2]
[382126815,1756510232806,-500.0,0.00024985,2]
[382126816,1756510232816,-541.65835796,0.00024985,2]
[382126817,1756510232825,-50000.0,0.00024986,2]
[382126818,1756510232835,-5719.35271712,0.0002499,2]
[382126819,1756510232845,-210.3688496,0.0002499,2]
[382126820,1756510232855,-210.27,0.0002499,3]
[382126821,1756510232869,-630.83,0.0002499,3]
[382126822,1756510232878,-2052.35,0.0002499,10]
[382126823,1756510232889,-1710.29,0.0002499,10]
[382126824,1756510232899,-123.2104259,0.00024998,2]
[382127321,1756510243673,-2326.4695741,0.00024998,2]
[382127323,1756510243683,-200.0,0.00024999,14]
[382127326,1756510243692,-300.0,0.00024999,17]
[382127329,1756510243701,-193.8165198,0.00024999,2]
[382127332,1756510243711,-5782.18511214,0.00025,2]
[382128712,1756510257655,161.05274,0.00013699,2]
[382129204,1756510350972,294.33414675,0.000199,2]
[382129205,1756510351179,294.33414655,0.00022879,2]
[382129207,1756510524691,274.6255221,0.000199,2]
[382129208,1756510525457,274.62552181,0.00021389,2]
[382129209,1756510525512,274.62552181,0.00022879,2]
[382129216,1756510703041,542.50069399,0.000199,2]
[382129219,1756510703495,542.50069381,0.00021389,2]
[382129220,1756510703748,542.50069381,0.00022879,2]
[382129226,1756510875439,488.17191068,0.000199,2]
[382129227,1756511053767,481.68427405,0.000199,2]
[382129229,1756511054693,481.68427383,0.00021389,2]
[382129231,1756511086335,10237.36,0.00024,2]
[382129234,1756511246742,449.57198914,0.000199,2]
[382129235,1756511246850,449.5719889,0.00021389,2]
[382129236,1756511246993,449.5719889,0.00022879,2]
[382129239,1756511319572,161.05274,0.00013699,2]
[382129240,1756511424479,404.60198753,0.000199,2]
[382129262,1756511432815,-250.0,0.00024393,2]
[382129264,1756511432825,-950.0,0.00024496,2]
[382129324,1756511443825,-300.0,0.00024496,2]
[382129405,1756511446984,-1248.0,0.00024496,2]
[382129406,1756511446994,-336.0,0.00024504,2]
[382129407,1756511447004,-990.0,0.00024607,2]
[382129408,1756511447013,-336.0,0.00024796,2]
[382129409,1756511447023,-336.0,0.000248,2]
[382129410,1756511447033,-1056.06970729,0.000249,2]
[382129411,1756511590098,460.48905234,0.000199,2]
[382129412,1756511590162,460.48905222,0.00021389,2]
[382129417,1756511774285,429.7105092,0.000199,2]
[382129418,1756511774343,429.71050918,0.00022879,2]
[382129421,1756511774940,429.71050918,0.00021389,2]
[382129423,1756511946288,402.16462683,0.000199,2]
[382129426,1756511947266,402.1646266,0.00021389,2]
[382129435,1756512125229,375.49154594,0.000199,2]
[382129437,1756512125679,375.49154565,0.00021389,2]
[382129440,1756512126212,375.49154565,0.00022879,2]
[382129441,1756512129151,400.0,0.0002405,2]
[382129443,1756512207528,400.0,0.00027397,120]
[382129444,1756512226560,400.0,0.0002405,2]
[382129445,1756512243661,400.0,0.00027397,120]
[382129446,1756512254534,400.0,0.0002405,2]
[382129447,1756512267837,400.0,0.00027397,120]
[382129448,1756512293231,161.05274,0.00013699,2]
[382129449,1756512294189,337.85900822,0.000199,2]
[382129451,1756512294598,337.85900812,0.00021389,2]
[382129457,1756512462704,323.58998746,0.00021389,2]
[382129458,1756512462747,323.58998746,0.00022879,2]
[382129462,1756512464430,484.7,0.0002405,2]
[382129509,1756512638176,-323.58998746,0.00024368,2]
[382129510,1756512638188,-596.0,0.00024585,2]
[382129511,1756512638197,-596.0,0.00024601,7]
[382129512,1756512638207,-579.0531859,0.000247,2]
[382129513,1756512638217,-300.0,0.00024799,2]
[382129514,1756512638228,-300.0,0.00024799,2]
[382129515,1756512638238,-300.0,0.00024799,2]
[382129516,1756512638247,-300.0,0.00024799,2]
[382129517,1756512638258,-1665.06498363,0.000248,2]
[382129518,1756512638267,-35617.38721851,0.000248,2]
[382129519,1756512638276,-1578.00597462,0.000248,2]
[382129520,1756512638285,-1578.0059746,0.0002482,2]
[382129521,1756512638296,-1578.0059746,0.0002484,2]
[382129522,1756512638306,-337.96203977,0.00024845,2]
[382129523,1756512638315,-6901.89086752,0.00024846,2]
[382129524,1756512638325,-1578.0059746,0.0002486,2]
[382129525,1756512638334,-603.88,0.00024872,2]
[382129526,1756512638343,-1578.0059746,0.0002488,2]
[382129527,1756512638353,-201.67579007,0.00024885,2]
[382129528,1756512638363,-420.54,0.0002489,3]
[382129529,1756512638372,-13277.7183179,0.0002489,2]
[382129530,1756512638382,-259.41143311,0.00024899,2]
[382129531,1756512638391,-370000.0,0.000249,2]
[382129532,1756512638400,-151.567649,0.000249,7]
[382129533,1756512638410,-151.0,0.000249,7]
[382129534,1756512638419,-267.657014,0.000249,7]
[382129535,1756512638428,-228.897525,0.000249,7]
[382129536,1756512638439,-228.897525,0.000249,7]
[382129537,1756512638448,-228.897525,0.000249,7]
[382129538,1756512638458,-228.897525,0.000249,7]
[382129539,1756512638467,-228.897525,0.000249,7]
[382129540,1756512638476,-228.897525,0.000249,7]
[382129541,1756512638486,-228.897525,0.000249,7]
[382129542,1756512638495,-228.897525,0.000249,7]
[382129543,1756512638504,-151.0,0.000249,7]
[382129544,1756512638514,-151.0,0.000249,7]
[382129545,1756512638524,-151.0,0.000249,7]
[382129546,1756512638533,-151.0,0.000249,7]
[382129547,1756512638543,-151.0,0.000249,7]
[382129548,1756512638552,-151.0,0.000249,7]
[382129549,1756512638562,-500.0,0.000249,2]
[382129550,1756512638571,-151.0,0.000249,7]
[382129551,1756512638580,-151.0,0.000249,7]
[382129552,1756512638590,-151.0,0.000249,7]
[382129553,1756512638599,-151.0,0.000249,7]
[382129554,1756512638608,-151.0,0.000249,7]
[382129555,1756512638618,-151.0,0.000249,7]
[382129556,1756512638627,-151.0,0.000249,7]
[382129557,1756512638636,-165426.666631,0.000249,2]
[382129558,1756512638646,-151.0,0.000249,7]
[382129559,1756512638655,-151.0,0.000249,7]
[382129560,1756512638665,-151.0,0.000249,7]
[382129561,1756512638674,-151.0,0.000249,7]
[382129562,1756512638684,-151.0,0.000249,7]
[382129563,1756512638693,-151.0,0.000249,7]
[382129564,1756512638703,-151.0,0.000249,7]
[382129565,1756512638712,-151.0,0.000249,7]
[382129566,1756512638721,-151.0,0.000249,7]
[382129567,1756512638732,-151.0,0.000249,7]
[382129568,1756512638742,-151.0,0.000249,7]
[382129569,1756512638752,-151.0,0.000249,7]
[382129570,1756512638761,-151.0,0.000249,7]
[382129571,1756512638771,-151.0,0.000249,7]
[382129572,1756512638780,-151.0,0.0002496,7]
[382129573,1756512638790,-151.0,0.0002496,7]
[382129574,1756512638799,-151.0,0.0002496,7]
[382129575,1756512638808,-20678.3333289,0.0002496,2]
[382129576,1756512638817,-1659.71478974,0.0002496,2]
[382129577,1756512638826,-151.0,0.0002497,7]
[382129578,1756512638836,-1000.0,0.0002497,2]
[382129579,1756512638845,-1000.0,0.0002497,2]
[382129580,1756512638854,-1000.0,0.0002497,2]
[382129581,1756512638863,-1000.0,0.0002497,2]
[382129582,1756512638874,-1000.0,0.0002497,2]
[382129583,1756512638884,-1000.0,0.0002497,2]
[382129584,1756512638894,-1000.0,0.0002497,2]
[382129585,1756512638903,-1000.0,0.0002497,2]
[382129586,1756512638913,-1000.0,0.0002497,2]
[382129587,1756512638923,-1000.0,0.0002497,2]
[382129588,1756512638932,-1000.0,0.0002497,2]
[382129589,1756512638941,-1000.0,0.0002497,2]
[382129590,1756512638951,-1000.0,0.0002497,2]
[382129591,1756512638961,-1000.0,0.0002497,2]
[382129592,1756512638970,-1000.0,0.0002497,2]
[382129593,1756512638979,-1000.0,0.0002497,2]
[382129594,1756512638989,-1000.0,0.0002497,2]
[382129595,1756512638998,-1000.0,0.0002497,2]
[382129596,1756512639007,-1000.0,0.0002497,2]
[382129597,1756512639016,-1000.0,0.0002497,2]
[382129598,1756512639025,-1000.0,0.0002497,2]
[382129599,1756512639036,-1000.0,0.0002497,2]
[382129600,1756512639045,-1000.0,0.0002497,2]
[382129601,1756512639054,-1000.0,0.0002497,2]
[382129602,1756512639063,-1000.0,0.0002497,2]
[382129603,1756512639072,-1000.0,0.0002497,2]
[382129604,1756512639081,-1000.0,0.0002497,2]
[382129605,1756512639091,-151.0,0.0002497,7]
[382129606,1756512639100,-1000.0,0.0002497,2]
[382129607,1756512639109,-1000.0,0.0002497,2]